{"text_format":"3","workbook":"xlsx","n_sheets":1,"sheets":["Osebni mesečni proračun"],"read":"whole","date_system":"1900"}

{"sheet":"Osebni mesečni proračun","index":0,"n_rows":62,"n_cols":10,"rows_kept":62,"merged":[[0,1,0,9],[2,1,4,1],[2,2,2,3],[2,7,2,8],[3,2,3,3],[3,7,3,8],[4,2,4,3],[4,6,4,8],[5,1,7,1],[5,2,5,3],[5,7,5,8],[6,2,6,3],[6,7,6,8],[7,2,7,3],[7,6,7,8],[20,6,20,9],[21,1,21,4],[29,6,29,9],[31,1,31,4],[36,6,36,9],[38,1,38,4],[42,6,42,9],[44,1,44,4],[48,6,48,9],[52,1,52,4],[55,6,55,9]]}
[null,"Osebni mesečni proračun"]
[]
[null,"PREDVIDENI MESEČNI DOHODEK","Dohodek 1",null,{"v":2500,"d":"2,500 €"},null,"PREDVIDENI STROŠKI SKUPAJ ","(predvideni dohodek minus stroški)",null,{"$f":"SUM(C21,C31,C38,C44,C52,C62,H20,H29,H36,H42,H48,H55)","v":{"v":2060,"d":"2,060 €"}}]
[null,null,"Dodatni dohodek",null,{"v":500,"d":"500 €"},null,"DEJANSKI STROŠKI SKUPAJ ","(dejanski dohodek minus stroški)",null,{"$f":"SUM(D21,D31,D38,D44,D52,D62,I20,I29,I36,I42,I48,I55)","v":{"v":2040,"d":"2,040 €"}}]
[null,null,"Mesečni dohodek skupaj",null,{"$f":"SUM(E3:E4)","v":{"v":3000,"d":"3,000 €"}},null,"SKUPNI STROŠKI – RAZLIKA",null,null,{"$f":"SUM(E21,E31,E38,E44,E52,E62,J20,J29,J36,J42,J48,J55)","v":{"v":20,"d":"20 €"}}]
[null,"DEJANSKI MESEČNI DOHODEK","Dohodek 1",null,{"v":2500,"d":"2,500 €"},null,"PREDVIDENA BILANCA","(predvideni dohodek minus stroški)",null,{"$f":"E5-J3","v":{"v":940,"d":"940 €"}}]
[null,null,"Dodatni dohodek",null,{"v":500,"d":"500 €"},null,"DEJANSKA BILANCA","(dejanski dohodek minus stroški)",null,{"$f":"E8-J4","v":{"v":960,"d":"960 €"}}]
[null,null,"Mesečni dohodek skupaj",null,{"$f":"SUM(E6:E7)","v":{"v":3000,"d":"3,000 €"}},null,"BILANCA – RAZLIKA (dejanska minus predvidena)",null,null,{"$f":"J7-J6","v":{"v":20,"d":"20 €"}}]
[]
[null,"NASTANITEV","Predvideni stroški","Dejanski stroški","Razlika",null,"ZABAVA","Predvideni stroški","Dejanski stroški","Razlika"]
[null,"Hipoteka ali najemnina",{"v":1500,"d":"1,500 €"},{"v":1400,"d":"1,400 €"},{"$f":"Nastanitev[[#This Row],[Predvideni stroški]]-Nastanitev[[#This Row],[Dejanski stroški]]","v":{"v":100,"d":"100 €"}},null,"Video/DVD",{"v":0,"d":"0 €"},{"v":50,"d":"50 €"},{"$f":"Razvedrilo[[#This Row],[Predvideni stroški]]-Razvedrilo[[#This Row],[Dejanski stroški]]","v":{"v":-50,"d":"-50 €"}}]
[null,"Telefon",{"v":60,"d":"60 €"},{"v":100,"d":"100 €"},{"$f":"Nastanitev[[#This Row],[Predvideni stroški]]-Nastanitev[[#This Row],[Dejanski stroški]]","v":{"v":-40,"d":"-40 €"}},null,"CD-ji",null,null,{"$f":"Razvedrilo[[#This Row],[Predvideni stroški]]-Razvedrilo[[#This Row],[Dejanski stroški]]","v":{"v":0,"d":"0 €"}}]
[null,"Elektrika",{"v":50,"d":"50 €"},{"v":60,"d":"60 €"},{"$f":"Nastanitev[[#This Row],[Predvideni stroški]]-Nastanitev[[#This Row],[Dejanski stroški]]","v":{"v":-10,"d":"-10 €"}},null,"Filmi",null,null,{"$f":"Razvedrilo[[#This Row],[Predvideni stroški]]-Razvedrilo[[#This Row],[Dejanski stroški]]","v":{"v":0,"d":"0 €"}}]
[null,"Plin",{"v":200,"d":"200 €"},{"v":180,"d":"180 €"},{"$f":"Nastanitev[[#This Row],[Predvideni stroški]]-Nastanitev[[#This Row],[Dejanski stroški]]","v":{"v":20,"d":"20 €"}},null,"Koncerti",null,null,{"$f":"Razvedrilo[[#This Row],[Predvideni stroški]]-Razvedrilo[[#This Row],[Dejanski stroški]]","v":{"v":0,"d":"0 €"}}]
[null,"Voda in kanalščina",null,null,{"$f":"Nastanitev[[#This Row],[Predvideni stroški]]-Nastanitev[[#This Row],[Dejanski stroški]]","v":{"v":0,"d":"0 €"}},null,"Športni dogodki",null,null,{"$f":"Razvedrilo[[#This Row],[Predvideni stroški]]-Razvedrilo[[#This Row],[Dejanski stroški]]","v":{"v":0,"d":"0 €"}}]
[null,"Kabelska",null,null,{"$f":"Nastanitev[[#This Row],[Predvideni stroški]]-Nastanitev[[#This Row],[Dejanski stroški]]","v":{"v":0,"d":"0 €"}},null,"Gledališče",null,null,{"$f":"Razvedrilo[[#This Row],[Predvideni stroški]]-Razvedrilo[[#This Row],[Dejanski stroški]]","v":{"v":0,"d":"0 €"}}]
[null,"Odvoz odpadkov",null,null,{"$f":"Nastanitev[[#This Row],[Predvideni stroški]]-Nastanitev[[#This Row],[Dejanski stroški]]","v":{"v":0,"d":"0 €"}},null,"Drugo",null,null,{"$f":"Razvedrilo[[#This Row],[Predvideni stroški]]-Razvedrilo[[#This Row],[Dejanski stroški]]","v":{"v":0,"d":"0 €"}}]
[null,"Vzdrževanje ali popravila",null,null,{"$f":"Nastanitev[[#This Row],[Predvideni stroški]]-Nastanitev[[#This Row],[Dejanski stroški]]","v":{"v":0,"d":"0 €"}},null,"Drugo",null,null,{"$f":"Razvedrilo[[#This Row],[Predvideni stroški]]-Razvedrilo[[#This Row],[Dejanski stroški]]","v":{"v":0,"d":"0 €"}}]
[null,"Zaloge",null,null,{"$f":"Nastanitev[[#This Row],[Predvideni stroški]]-Nastanitev[[#This Row],[Dejanski stroški]]","v":{"v":0,"d":"0 €"}},null,"Drugo",null,null,{"$f":"Razvedrilo[[#This Row],[Predvideni stroški]]-Razvedrilo[[#This Row],[Dejanski stroški]]","v":{"v":0,"d":"0 €"}}]
[null,"Drugo",null,null,{"$f":"Nastanitev[[#This Row],[Predvideni stroški]]-Nastanitev[[#This Row],[Dejanski stroški]]","v":{"v":0,"d":"0 €"}},null,"Vsota",{"$f":"SUBTOTAL(109,Razvedrilo[Predvideni stroški])","v":{"v":0,"d":"0 €"}},{"$f":"SUBTOTAL(109,Razvedrilo[Dejanski stroški])","v":{"v":50,"d":"50 €"}},{"$f":"SUBTOTAL(109,Razvedrilo[Razlika])","v":{"v":-50,"d":"-50 €"}}]
[null,"Vsota",{"$f":"SUBTOTAL(109,Nastanitev[Predvideni stroški])","v":{"v":1810,"d":"1,810 €"}},{"$f":"SUBTOTAL(109,Nastanitev[Dejanski stroški])","v":{"v":1740,"d":"1,740 €"}},{"$f":"SUBTOTAL(109,Nastanitev[Razlika])","v":{"v":70,"d":"70 €"}}]
[{"$nulls":6},"POSOJILA","Predvideni stroški","Dejanski stroški","Razlika"]
[null,"PREVOZ","Predvideni stroški","Dejanski stroški","Razlika",null,"Osebno",null,null,{"$f":"Posojila[[#This Row],[Predvideni stroški]]-Posojila[[#This Row],[Dejanski stroški]]","v":{"v":0,"d":"0 €"}}]
[null,"Plačilo vozila",{"v":250,"d":"250 €"},{"v":250,"d":"250 €"},{"$f":"Prevoz[[#This Row],[Predvideni stroški]]-Prevoz[[#This Row],[Dejanski stroški]]","v":{"v":0,"d":"0 €"}},null,"Študentsko",null,null,{"$f":"Posojila[[#This Row],[Predvideni stroški]]-Posojila[[#This Row],[Dejanski stroški]]","v":{"v":0,"d":"0 €"}}]
[null,"Avtobus/taksi",null,null,{"$f":"Prevoz[[#This Row],[Predvideni stroški]]-Prevoz[[#This Row],[Dejanski stroški]]","v":{"v":0,"d":"0 €"}},null,"Kreditna kartica",null,null,{"$f":"Posojila[[#This Row],[Predvideni stroški]]-Posojila[[#This Row],[Dejanski stroški]]","v":{"v":0,"d":"0 €"}}]
[null,"Zavarovanje",null,null,{"$f":"Prevoz[[#This Row],[Predvideni stroški]]-Prevoz[[#This Row],[Dejanski stroški]]","v":{"v":0,"d":"0 €"}},null,"Kreditna kartica",null,null,{"$f":"Posojila[[#This Row],[Predvideni stroški]]-Posojila[[#This Row],[Dejanski stroški]]","v":{"v":0,"d":"0 €"}}]
[null,"Registracija",null,null,{"$f":"Prevoz[[#This Row],[Predvideni stroški]]-Prevoz[[#This Row],[Dejanski stroški]]","v":{"v":0,"d":"0 €"}},null,"Kreditna kartica",null,null,{"$f":"Posojila[[#This Row],[Predvideni stroški]]-Posojila[[#This Row],[Dejanski stroški]]","v":{"v":0,"d":"0 €"}}]
[null,"Gorivo",null,null,{"$f":"Prevoz[[#This Row],[Predvideni stroški]]-Prevoz[[#This Row],[Dejanski stroški]]","v":{"v":0,"d":"0 €"}},null,"Drugo",null,null,{"$f":"Posojila[[#This Row],[Predvideni stroški]]-Posojila[[#This Row],[Dejanski stroški]]","v":{"v":0,"d":"0 €"}}]
[null,"Vzdrževanje",null,null,{"$f":"Prevoz[[#This Row],[Predvideni stroški]]-Prevoz[[#This Row],[Dejanski stroški]]","v":{"v":0,"d":"0 €"}},null,"Vsota",{"$f":"SUBTOTAL(109,Posojila[Predvideni stroški])","v":{"v":0,"d":"0 €"}},{"$f":"SUBTOTAL(109,Posojila[Dejanski stroški])","v":{"v":0,"d":"0 €"}},{"$f":"SUBTOTAL(109,Posojila[Razlika])","v":{"v":0,"d":"0 €"}}]
[null,"Drugo",null,null,{"$f":"Prevoz[[#This Row],[Predvideni stroški]]-Prevoz[[#This Row],[Dejanski stroški]]","v":{"v":0,"d":"0 €"}}]
[null,"Vsota",{"$f":"SUBTOTAL(109,Prevoz[Predvideni stroški])","v":{"v":250,"d":"250 €"}},{"$f":"SUBTOTAL(109,Prevoz[Dejanski stroški])","v":{"v":250,"d":"250 €"}},{"$f":"SUBTOTAL(109,Prevoz[Razlika])","v":{"v":0,"d":"0 €"}},null,"DAVKI","Predvideni stroški","Dejanski stroški","Razlika"]
[{"$nulls":6},"Zvezni",null,null,{"$f":"Davki[[#This Row],[Predvideni stroški]]-Davki[[#This Row],[Dejanski stroški]]","v":{"v":0,"d":"0 €"}}]
[null,"ZAVAROVANJE","Predvideni stroški","Dejanski stroški","Razlika",null,"Državni",null,null,{"$f":"Davki[[#This Row],[Predvideni stroški]]-Davki[[#This Row],[Dejanski stroški]]","v":{"v":0,"d":"0 €"}}]
[null,"Dom",null,null,{"$f":"Zavarovanje[[#This Row],[Predvideni stroški]]-Zavarovanje[[#This Row],[Dejanski stroški]]","v":{"v":0,"d":"0 €"}},null,"Lokalni",null,null,{"$f":"Davki[[#This Row],[Predvideni stroški]]-Davki[[#This Row],[Dejanski stroški]]","v":{"v":0,"d":"0 €"}}]
[null,"Zdravstveno",null,null,{"$f":"Zavarovanje[[#This Row],[Predvideni stroški]]-Zavarovanje[[#This Row],[Dejanski stroški]]","v":{"v":0,"d":"0 €"}},null,"Drugo",null,null,{"$f":"Davki[[#This Row],[Predvideni stroški]]-Davki[[#This Row],[Dejanski stroški]]","v":{"v":0,"d":"0 €"}}]
[null,"Življenjsko",null,null,{"$f":"Zavarovanje[[#This Row],[Predvideni stroški]]-Zavarovanje[[#This Row],[Dejanski stroški]]","v":{"v":0,"d":"0 €"}},null,"Vsota",{"$f":"SUBTOTAL(109,Davki[Predvideni stroški])","v":{"v":0,"d":"0 €"}},{"$f":"SUBTOTAL(109,Davki[Dejanski stroški])","v":{"v":0,"d":"0 €"}},{"$f":"SUBTOTAL(109,Davki[Razlika])","v":{"v":0,"d":"0 €"}}]
[null,"Drugo",null,null,{"$f":"Zavarovanje[[#This Row],[Predvideni stroški]]-Zavarovanje[[#This Row],[Dejanski stroški]]","v":{"v":0,"d":"0 €"}}]
[null,"Vsota",{"$f":"SUBTOTAL(109,Zavarovanje[Predvideni stroški])","v":{"v":0,"d":"0 €"}},{"$f":"SUBTOTAL(109,Zavarovanje[Dejanski stroški])","v":{"v":0,"d":"0 €"}},{"$f":"SUBTOTAL(109,Zavarovanje[Razlika])","v":{"v":0,"d":"0 €"}},null,"PRIHRANKI ALI NALOŽBE","Predvideni stroški","Dejanski stroški","Razlika"]
[{"$nulls":6},"Varčevalni račun",null,null,{"$f":"Prihranki_ali_naložbe[[#This Row],[Predvideni stroški]]-Prihranki_ali_naložbe[[#This Row],[Dejanski stroški]]","v":{"v":0,"d":"0 €"}}]
[null,"HRANA","Predvideni stroški","Dejanski stroški","Razlika",null,"Naložbeni račun",null,null,{"$f":"Prihranki_ali_naložbe[[#This Row],[Predvideni stroški]]-Prihranki_ali_naložbe[[#This Row],[Dejanski stroški]]","v":{"v":0,"d":"0 €"}}]
[null,"Živila",null,null,{"$f":"Hrana[[#This Row],[Predvideni stroški]]-Hrana[[#This Row],[Dejanski stroški]]","v":{"v":0,"d":"0 €"}},null,"Drugo",null,null,{"$f":"Prihranki_ali_naložbe[[#This Row],[Predvideni stroški]]-Prihranki_ali_naložbe[[#This Row],[Dejanski stroški]]","v":{"v":0,"d":"0 €"}}]
[null,"Kosila v restavracijah",null,null,{"$f":"Hrana[[#This Row],[Predvideni stroški]]-Hrana[[#This Row],[Dejanski stroški]]","v":{"v":0,"d":"0 €"}},null,"Vsota",{"$f":"SUBTOTAL(109,Prihranki_ali_naložbe[Predvideni stroški])","v":{"v":0,"d":"0 €"}},{"$f":"SUBTOTAL(109,Prihranki_ali_naložbe[Dejanski stroški])","v":{"v":0,"d":"0 €"}},{"$f":"SUBTOTAL(109,Prihranki_ali_naložbe[Razlika])","v":{"v":0,"d":"0 €"}}]
[null,"Drugo",null,null,{"$f":"Hrana[[#This Row],[Predvideni stroški]]-Hrana[[#This Row],[Dejanski stroški]]","v":{"v":0,"d":"0 €"}}]
[null,"Vsota",{"$f":"SUBTOTAL(109,Hrana[Predvideni stroški])","v":{"v":0,"d":"0 €"}},{"$f":"SUBTOTAL(109,Hrana[Dejanski stroški])","v":{"v":0,"d":"0 €"}},{"$f":"SUBTOTAL(109,Hrana[Razlika])","v":{"v":0,"d":"0 €"}},null,"DARILA IN DONACIJE","Predvideni stroški","Dejanski stroški","Razlika"]
[{"$nulls":6},"Dobrodelno 1",null,null,{"$f":"Darila_in_donacije[[#This Row],[Predvideni stroški]]-Darila_in_donacije[[#This Row],[Dejanski stroški]]","v":{"v":0,"d":"0 €"}}]
[null,"HIŠNI LJUBLJENČKI","Predvideni stroški","Dejanski stroški","Razlika",null,"Dobrodelno 2",null,null,{"$f":"Darila_in_donacije[[#This Row],[Predvideni stroški]]-Darila_in_donacije[[#This Row],[Dejanski stroški]]","v":{"v":0,"d":"0 €"}}]
[null,"Hrana",null,null,{"$f":"Hišni_ljubljenčki[[#This Row],[Predvideni stroški]]-Hišni_ljubljenčki[[#This Row],[Dejanski stroški]]","v":{"v":0,"d":"0 €"}},null,"Dobrodelno 3",null,null,{"$f":"Darila_in_donacije[[#This Row],[Predvideni stroški]]-Darila_in_donacije[[#This Row],[Dejanski stroški]]","v":{"v":0,"d":"0 €"}}]
[null,"Zdravstvene potrebščine",null,null,{"$f":"Hišni_ljubljenčki[[#This Row],[Predvideni stroški]]-Hišni_ljubljenčki[[#This Row],[Dejanski stroški]]","v":{"v":0,"d":"0 €"}},null,"Vsota",{"$f":"SUBTOTAL(109,Darila_in_donacije[Predvideni stroški])","v":{"v":0,"d":"0 €"}},{"$f":"SUBTOTAL(109,Darila_in_donacije[Dejanski stroški])","v":{"v":0,"d":"0 €"}},{"$f":"SUBTOTAL(109,Darila_in_donacije[Razlika])","v":{"v":0,"d":"0 €"}}]
[null,"Nega",null,null,{"$f":"Hišni_ljubljenčki[[#This Row],[Predvideni stroški]]-Hišni_ljubljenčki[[#This Row],[Dejanski stroški]]","v":{"v":0,"d":"0 €"}}]
[null,"Igrače",null,null,{"$f":"Hišni_ljubljenčki[[#This Row],[Predvideni stroški]]-Hišni_ljubljenčki[[#This Row],[Dejanski stroški]]","v":{"v":0,"d":"0 €"}},null,"PRAVNE ZADEVE","Predvideni stroški","Dejanski stroški","Razlika"]
[null,"Drugo",null,null,{"$f":"Hišni_ljubljenčki[[#This Row],[Predvideni stroški]]-Hišni_ljubljenčki[[#This Row],[Dejanski stroški]]","v":{"v":0,"d":"0 €"}},null,"Odvetnik",null,null,{"$f":"Pravne_zadeve[[#This Row],[Predvideni stroški]]-Pravne_zadeve[[#This Row],[Dejanski stroški]]","v":{"v":0,"d":"0 €"}}]
[null,"Vsota",{"$f":"SUBTOTAL(109,Hišni_ljubljenčki[Predvideni stroški])","v":{"v":0,"d":"0 €"}},{"$f":"SUBTOTAL(109,Hišni_ljubljenčki[Dejanski stroški])","v":{"v":0,"d":"0 €"}},{"$f":"SUBTOTAL(109,Hišni_ljubljenčki[Razlika])","v":{"v":0,"d":"0 €"}},null,"Preživnina",null,null,{"$f":"Pravne_zadeve[[#This Row],[Predvideni stroški]]-Pravne_zadeve[[#This Row],[Dejanski stroški]]","v":{"v":0,"d":"0 €"}}]
[{"$nulls":6},"Plačila do zadržanja ali razsodbe",null,null,{"$f":"Pravne_zadeve[[#This Row],[Predvideni stroški]]-Pravne_zadeve[[#This Row],[Dejanski stroški]]","v":{"v":0,"d":"0 €"}}]
[null,"OSEBNA NEGA","Predvideni stroški","Dejanski stroški","Razlika",null,"Drugo",null,null,{"$f":"Pravne_zadeve[[#This Row],[Predvideni stroški]]-Pravne_zadeve[[#This Row],[Dejanski stroški]]","v":{"v":0,"d":"0 €"}}]
[null,"Zdravstvene potrebščine",null,null,{"$f":"Osebna_nega[[#This Row],[Predvideni stroški]]-Osebna_nega[[#This Row],[Dejanski stroški]]","v":{"v":0,"d":"0 €"}},null,"Vsota",{"$f":"SUBTOTAL(109,Pravne_zadeve[Predvideni stroški])","v":{"v":0,"d":"0 €"}},{"$f":"SUBTOTAL(109,Pravne_zadeve[Dejanski stroški])","v":{"v":0,"d":"0 €"}},{"$f":"SUBTOTAL(109,Pravne_zadeve[Razlika])","v":{"v":0,"d":"0 €"}}]
[null,"Lasje/nohti",null,null,{"$f":"Osebna_nega[[#This Row],[Predvideni stroški]]-Osebna_nega[[#This Row],[Dejanski stroški]]","v":{"v":0,"d":"0 €"}}]
[null,"Oblačila",null,null,{"$f":"Osebna_nega[[#This Row],[Predvideni stroški]]-Osebna_nega[[#This Row],[Dejanski stroški]]","v":{"v":0,"d":"0 €"}}]
[null,"Kemična čistilnica",null,null,{"$f":"Osebna_nega[[#This Row],[Predvideni stroški]]-Osebna_nega[[#This Row],[Dejanski stroški]]","v":{"v":0,"d":"0 €"}}]
[null,"Fitnes",null,null,{"$f":"Osebna_nega[[#This Row],[Predvideni stroški]]-Osebna_nega[[#This Row],[Dejanski stroški]]","v":{"v":0,"d":"0 €"}}]
[null,"Pristojbine za organizacijo",null,null,{"$f":"Osebna_nega[[#This Row],[Predvideni stroški]]-Osebna_nega[[#This Row],[Dejanski stroški]]","v":{"v":0,"d":"0 €"}}]
[null,"Drugo",null,null,{"$f":"Osebna_nega[[#This Row],[Predvideni stroški]]-Osebna_nega[[#This Row],[Dejanski stroški]]","v":{"v":0,"d":"0 €"}}]
[null,"Vsota",{"$f":"SUBTOTAL(109,Osebna_nega[Predvideni stroški])","v":{"v":0,"d":"0 €"}},{"$f":"SUBTOTAL(109,Osebna_nega[Dejanski stroški])","v":{"v":0,"d":"0 €"}},{"$f":"SUBTOTAL(109,Osebna_nega[Razlika])","v":{"v":0,"d":"0 €"}}]